[Event "Memorial Ukrainian Chess Warriors 2024"]
[Site "Lviv"]
[Date "2024.03.15"]
[Round "6.15"]
[White "Kotovskyy, Dmytro"]
[Black "Stolbov, Mikhail G."]
[Result "0-1"]
[ECO "B10"]
[WhiteElo "2024"]
[BlackElo "2205"]
[Annotator "RC"]
[PlyCount "72"]
[EventDate "2024.03.06"]
[EventType "swiss"]
[EventCountry "UKR"]
[SourceTitle "playchess.com"]
[Source "ChessBase"]
[SourceQuality "1"]
[TimeControl "600+5"]

1. e4 {[%emt 0:00:03]} c6 {[%emt 0:00:01]} 2. Nf3 {[%emt 0:00:03]} d5 {[%emt 0:00:01]} 3. Nc3 {[%emt 0:00:02]} dxe4 {[%emt 0:00:05]} 4. Nxe4 {[%emt 0:00:01]} Nf6 {[%emt 0:00:02]} 5. Ng3 {[%emt 0:00:24]} h5 {[%emt 0:00:02]} 6. h4 {[%emt 0:00:35]} Bg4 {[%emt 0:00:03]} 7. Bc4 {[%emt 0:00:22]} e6 {[%emt 0:00:02]} 8. d3 {[%emt 0:00:28]} Bd6 {[%emt 0:00:11]} 9. Bg5 {[%emt 0:00:06]} Qc7 {[%emt 0:01:08]} 10. Bxf6 {[%emt 0:00:36]} gxf6 {[%emt 0:00:06]} 11. Ne4 {[%emt 0:00:03]} Nd7 {[%emt 0:00:08]} 12. Nxd6+ {[%emt 0:01:15]} Qxd6 {[%emt 0:00:01]} 13. Qe2 {[%emt 0:00:32]} Ne5 {[%emt 0:00:59]} 14. O-O-O {[%emt 0:00:22]} Nxf3 {[%emt 0:00:13]} 15. gxf3 {[%emt 0:00:01]} Qf4+ {[%emt 0:00:01]} 16. Qd2 {[%emt 0:00:26]} Qxd2+ {[%emt 0:00:02]} 17. Rxd2 {[%emt 0:00:02]} Bxf3 {[%emt 0:00:02]} 18. Rg1 {[%emt 0:00:23]} Ke7 {[%emt 0:00:00]} 19. Rg3 {[%emt 0:00:09]} Bd5 {[%emt 0:00:09]} 20. Bxd5 {[%emt 0:00:18]} cxd5 {[%emt 0:00:01]} 21. d4 {[%emt 0:00:14]} Rhg8 {[%emt 0:00:09]} 22. Rdd3 {[%emt 0:01:02]} Rg4 {[%emt 0:00:05]} 23. Rxg4 {[%emt 0:00:20]} hxg4 {[%emt 0:00:02]} 24. h5 {[%emt 0:00:20]} f5 {[%emt 0:00:05]} 25. Kd2 {[%emt 0:00:35]} f4 {[%emt 0:00:43]} 26. Ke2 {[%emt 0:00:34]} Kf6 {[%emt 0:00:04]} 27. Rc3 {[%emt 0:00:09]} b6 {[%emt 0:00:10]} 28. Rc7 {[%emt 0:00:10]} Rh8 {[%emt 0:00:36]} 29. Rxa7 {[%emt 0:00:12]} Rxh5 {[%emt 0:00:01]} 30. Rb7 {[%emt 0:00:30]} Rh2 {[%emt 0:00:20]} 31. Ke1 {[%emt 0:00:20]} g3 {[%emt 0:00:15]} 32. fxg3 {[%emt 0:00:05]} fxg3 {[%emt 0:00:01]} 33. Kf1 {[%emt 0:00:27]} Rxc2 {[%emt 0:00:02]} 34. Rxb6 {[%emt 0:00:01]} Kg5 {[%emt 0:00:13]} 35. a4 {[%emt 0:00:09]} Kg4 {[%emt 0:00:07]} 36. Rb8 {[%emt 0:00:11]} f5 {[%emt 0:00:34]} 0-1

[Event "Memorial Ukrainian Chess Warriors 2024"]
[Site "Lviv"]
[Date "2024.03.15"]
[Round "6.16"]
[White "Smolkin, Alexander"]
[Black "Fishchuk, Vladyslav"]
[Result "1-0"]
[ECO "C22"]
[WhiteElo "1957"]
[BlackElo "2203"]
[Annotator "RC"]
[PlyCount "51"]
[EventDate "2024.03.06"]
[EventType "swiss"]
[EventCountry "UKR"]
[SourceTitle "playchess.com"]
[Source "ChessBase"]
[SourceQuality "1"]
[TimeControl "600+5"]

1. e4 {[%emt 0:00:03]} e5 {[%emt 0:00:01]} 2. d4 {[%emt 0:00:04]} exd4 {[%emt 0:00:04]} 3. Qxd4 {[%emt 0:00:03]} Nc6 {[%emt 0:00:01]} 4. Qe3 {[%emt 0:00:03]} Nf6 {[%emt 0:00:02]} 5. Nc3 {[%emt 0:00:02]} Bb4 {[%emt 0:00:02]} 6. Bd2 {[%emt 0:00:02]} O-O {[%emt 0:00:03]} 7. O-O-O {[%emt 0:00:03]} Re8 {[%emt 0:00:01]} 8. Qg3 {[%emt 0:00:02]} Rxe4 {[%emt 0:00:33]} 9. Bd3 {[%emt 0:00:31]} Rg4 {[%emt 0:00:48]} 10. Qf3 {[%emt 0:02:00]} d5 {[%emt 0:00:59]} 11. h3 {[%emt 0:01:03]} Ne5 {[%emt 0:00:20]} 12. Qe2 {[%emt 0:00:19]} Nxd3+ {[%emt 0:00:05]} 13. Qxd3 {[%emt 0:00:02]} Rxg2 {[%emt 0:00:30]} 14. Qf3 {[%emt 0:00:12]} Rg6 {[%emt 0:00:19]} 15. Nge2 {[%emt 0:01:10]} c6 {[%emt 0:00:47]} 16. Nf4 {[%emt 0:00:12]} Rh6 {[%emt 0:00:49]} 17. Nd3 {[%emt 0:01:06]} Rh4 {[%emt 0:01:17]} 18. Nxb4 {[%emt 0:02:19]} Rxb4 {[%emt 0:00:03]} 19. Nxd5 {[%emt 0:00:03]} Nxd5 {[%emt 0:01:57]} 20. Bxb4 {[%emt 0:00:06]} Qb6 {[%emt 0:00:35]} 21. Bd6 {[%emt 0:00:38]} Be6 {[%emt 0:00:07]} 22. Rhg1 {[%emt 0:00:12]} Re8 {[%emt 0:01:12]} 23. Rxg7+ {[%emt 0:00:44]} Kxg7 {[%emt 0:00:13]} 24. Rg1+ {[%emt 0:00:02]} Kh6 {[%emt 0:00:21]} 25. Bf4+ {[%emt 0:00:06]} Nxf4 {[%emt 0:00:17]} 26. Qxf4+ {[%emt 0:00:01]} 1-0

[Event "Memorial Ukrainian Chess Warriors 2024"]
[Site "Lviv"]
[Date "2024.03.15"]
[Round "6.17"]
[White "Guivan, Vasily"]
[Black "Terletsky, Oleg A."]
[Result "1-0"]
[ECO "D00"]
[WhiteElo "2013"]
[BlackElo "2036"]
[Annotator "NA RC"]
[PlyCount "101"]
[EventDate "2024.03.06"]
[EventType "swiss"]
[EventCountry "UKR"]
[SourceTitle "playchess.com"]
[Source "ChessBase"]
[SourceQuality "1"]
[TimeControl "600+5"]

1. d4 {[%emt 0:00:04]} d5 {[%emt 0:00:01]} 2. e4 {[%emt 0:00:01]} dxe4 {[%emt 0:00:11]} 3. Nc3 {[%emt 0:00:01]} Nf6 {[%emt 0:00:06]} 4. f3 {[%emt 0:00:01]} exf3 {[%emt 0:00:15]} 5. Nxf3 {[%emt 0:00:01]} Bg4 {[%emt 0:00:09]} 6. h3 {[%emt 0:00:02]} Bh5 {[%emt 0:00:03]} 7. g4 {[%emt 0:00:01]} Bg6 {[%emt 0:00:01]} 8. Ne5 {[%emt 0:00:28]} Nbd7 {[%emt 0:00:52]} 9. Qe2 {[%emt 0:00:01]} Nxe5 {[%emt 0:02:00]} 10. dxe5 {[%emt 0:00:02]} Nd5 {[%emt 0:00:07]} 11. Qb5+ {[%emt 0:00:16]} c6 {[%emt 0:00:36]} 12. Qxb7 {[%emt 0:00:03]} Qc8 {[%emt 0:00:50]} 13. Ba6 {[%emt 0:00:16]} Nb6 {[%emt 0:02:13]} 14. Qxc8+ {[%emt 0:00:06]} Nxc8 {[%emt 0:00:03]} 15. Bb7 {[%emt 0:00:01]} Rb8 {[%emt 0:00:01]} 16. Bxc6+ {[%emt 0:00:02]} Kd8 {[%emt 0:00:01]} 17. e6 {[%emt 0:00:17]} fxe6 {[%emt 0:00:17]} 18. Be3 {[%emt 0:00:16]} Rxb2 {[%emt 0:00:09]} 19. O-O-O+ {[%emt 0:00:03]} Kc7 {[%emt 0:00:05]} 20. Kxb2 {[%emt 0:00:06]} Kxc6 {[%emt 0:00:03]} 21. Rd8 {[%emt 0:00:22]} Nd6 {[%emt 0:00:15]} 22. Bd4 {[%emt 0:02:21]} Kc7 {[%emt 0:00:14]} 23. Ra8 {[%emt 0:00:04]} e5 {[%emt 0:02:14]} 24. Rxa7+ {[%emt 0:00:26]} Kb8 {[%emt 0:00:03]} 25. Bc5 {[%emt 0:00:04]} Nb7 {[%emt 0:00:12]} 26. Bb6 {[%emt 0:00:12]} e6 {[%emt 0:00:11]} 27. Nb5 {[%emt 0:00:05]} Bd6 {[%emt 0:00:17]} 28. Rd1 {[%emt 0:00:21]} Rc8 {[%emt 0:00:23]} 29. Rxb7+ {[%emt 0:00:10]} Kxb7 {[%emt 0:00:07]} 30. Nxd6+ {[%emt 0:00:01]} Kxb6 {[%emt 0:00:06]} 31. Nxc8+ {[%emt 0:00:02]} Kc5 {[%emt 0:00:05]} 32. Nd6 {[%emt 0:00:19]} e4 {[%emt 0:00:06]} 33. Nb7+ {[%emt 0:00:11]} Kc4 {[%emt 0:00:08]} 34. Rd6 {[%emt 0:00:20]} e3 {[%emt 0:00:18]} 35. Rxe6 {[%emt 0:00:05]} Kd4 {[%emt 0:00:01]} 36. Nd6 {[%emt 0:00:25]} Kd5 {[%emt 0:00:09]} 37. Rxe3 {[%emt 0:00:02]} Kxd6 {[%emt 0:00:00]} 38. c4 {[%emt 0:00:05]} Kc5 {[%emt 0:00:01]} 39. Kc3 {[%emt 0:00:00]} Kd6 {[%emt 0:00:03]} 40. Kd4 {[%emt 0:00:02]} Bf7 {[%emt 0:00:09]} 41. a4 {[%emt 0:00:04]} Be6 {[%emt 0:00:08]} 42. Rxe6+ {[%emt 0:00:02]} Kxe6 {[%emt 0:00:01]} 43. a5 {[%emt 0:00:01]} Kd6 {[%emt 0:00:01]} 44. c5+ {[%emt 0:00:05]} Kc6 {[%emt 0:00:01]} 45. Kc4 {[%emt 0:00:01]} g5 {[%emt 0:00:02]} 46. a6 {[%emt 0:00:04]} Kc7 {[%emt 0:00:01]} 47. Kb5 {[%emt 0:00:01]} Kb8 {[%emt 0:00:01]} 48. Kb6 {[%emt 0:00:04]} h6 {[%emt 0:00:07]} 49. a7+ {[%emt 0:00:09]} Ka8 {[%emt 0:00:02]} 50. c6 {[%emt 0:00:09]} h5 {[%emt 0:00:01]} 51. c7 {[%emt 0:00:02]} 1-0

[Event "Memorial Ukrainian Chess Warriors 2024"]
[Site "Lviv"]
[Date "2024.03.15"]
[Round "6.18"]
[White "Andrienko, Artem"]
[Black "Ivanov, Taras"]
[Result "1/2-1/2"]
[ECO "A14"]
[WhiteElo "2041"]
[BlackElo "1831"]
[Annotator "NA"]
[PlyCount "105"]
[EventDate "2024.03.06"]
[EventType "swiss"]
[EventCountry "UKR"]
[SourceTitle "playchess.com"]
[Source "ChessBase"]
[SourceQuality "1"]
[TimeControl "600+5"]

1. c4 {[%emt 0:00:02]} e6 {[%emt 0:00:03]} 2. g3 {[%emt 0:00:04]} d5 {[%emt 0:00:03]} 3. Bg2 {[%emt 0:00:01]} Nf6 {[%emt 0:00:01]} 4. Nf3 {[%emt 0:00:01]} Be7 {[%emt 0:00:01]} 5. O-O {[%emt 0:00:03]} O-O {[%emt 0:00:02]} 6. d4 {[%emt 0:00:09]} dxc4 {[%emt 0:00:02]} 7. Qc2 {[%emt 0:00:01]} Bd7 {[%emt 0:00:01]} 8. a4 {[%emt 0:00:08]} Bc6 {[%emt 0:00:05]} 9. Nbd2 {[%emt 0:00:12]} Nbd7 {[%emt 0:00:35]} 10. Nxc4 {[%emt 0:00:12]} Be4 {[%emt 0:00:33]} 11. Qc3 {[%emt 0:01:33]} Nb6 {[%emt 0:01:32]} 12. Nfd2 {[%emt 0:00:40]} Bxg2 {[%emt 0:00:16]} 13. Kxg2 {[%emt 0:00:02]} c5 {[%emt 0:00:42]} 14. dxc5 {[%emt 0:00:42]} Bxc5 {[%emt 0:00:17]} 15. Nxb6 {[%emt 0:00:34]} Bxb6 {[%emt 0:00:12]} 16. Qf3 {[%emt 0:00:02]} Qd5 {[%emt 0:00:53]} 17. Qxd5 {[%emt 0:00:11]} Nxd5 {[%emt 0:00:02]} 18. Nc4 {[%emt 0:00:02]} Bd4 {[%emt 0:00:29]} 19. Rd1 {[%emt 0:00:11]} Bf6 {[%emt 0:00:26]} 20. e4 {[%emt 0:00:09]} Nb6 {[%emt 0:00:04]} 21. Nd6 {[%emt 0:00:39]} Rfd8 {[%emt 0:00:36]} 22. Ra3 {[%emt 0:01:02]} Be5 {[%emt 0:02:42]} 23. Rad3 {[%emt 0:00:31]} Bxd6 {[%emt 0:00:06]} 24. Rxd6 {[%emt 0:00:01]} Rxd6 {[%emt 0:00:01]} 25. Rxd6 {[%emt 0:00:02]} Nxa4 {[%emt 0:00:01]} 26. b4 {[%emt 0:00:15]} Nb6 {[%emt 0:00:32]} 27. h4 {[%emt 0:00:24]} Kf8 {[%emt 0:00:02]} 28. h5 {[%emt 0:00:51]} Ke7 {[%emt 0:00:13]} 29. Rd2 {[%emt 0:00:23]} g6 {[%emt 0:00:13]} 30. hxg6 {[%emt 0:00:14]} hxg6 {[%emt 0:00:01]} 31. b5 a6 {[%emt 0:00:41]} 32. bxa6 {[%emt 0:00:28]} bxa6 {[%emt 0:00:05]} 33. Rb2 {[%emt 0:00:03]} Nd7 {[%emt 0:00:28]} 34. Rb7 {[%emt 0:00:26]} Kd6 {[%emt 0:00:43]} 35. Bf4+ {[%emt 0:00:20]} e5 {[%emt 0:00:00]} 36. Be3 {[%emt 0:00:01]} a5 {[%emt 0:00:04]} 37. f4 {[%emt 0:00:14]} Kc6 {[%emt 0:00:11]} 38. Rb1 {[%emt 0:00:04]} exf4 {[%emt 0:00:04]} 39. gxf4 {[%emt 0:00:11]} a4 {[%emt 0:00:01]} 40. Rc1+ {[%emt 0:00:01]} Kd6 {[%emt 0:00:09]} 41. Rd1+ {[%emt 0:00:01]} Ke6 {[%emt 0:00:03]} 42. f5+ {[%emt 0:00:14]} gxf5 {[%emt 0:00:03]} 43. exf5+ {[%emt 0:00:02]} Ke7 {[%emt 0:00:06]} 44. Bg5+ {[%emt 0:00:04]} f6 {[%emt 0:00:06]} 45. Bf4 {[%emt 0:00:01]} a3 {[%emt 0:00:04]} 46. Bd6+ {[%emt 0:00:12]} Ke8 {[%emt 0:00:11]} 47. Re1+ {[%emt 0:00:14]} Kd8 {[%emt 0:00:01]} 48. Rh1 {[%emt 0:00:03]} Kc8 {[%emt 0:00:11]} 49. Rc1+ {[%emt 0:00:02]} Kd8 {[%emt 0:00:01]} 50. Rh1 {[%emt 0:00:03]} Kc8 {[%emt 0:00:06]} 51. Rh8+ {[%emt 0:00:07]} Kb7 {[%emt 0:00:00]} 52. Rxa8 {[%emt 0:00:01]} Kxa8 {[%emt 0:00:02]} 53. Bxa3 {[%emt 0:00:02]} 1/2-1/2

[Event "Memorial Ukrainian Chess Warriors 2024"]
[Site "Lviv"]
[Date "2024.03.15"]
[Round "6.19"]
[White "Lehinovych, Maksym"]
[Black "Lornye, Pylyp"]
[Result "1/2-1/2"]
[ECO "A05"]
[WhiteElo "1618"]
[BlackElo "2147"]
[Annotator "ChessBase"]
[PlyCount "106"]
[EventDate "2024.03.06"]
[EventType "swiss"]
[EventCountry "UKR"]
[SourceTitle "playchess.com"]
[Source "ChessBase"]
[SourceQuality "1"]
[TimeControl "600+5"]

1. Nf3 {[%emt 0:00:03]} Nf6 {[%emt 0:00:01]} 2. g3 {[%emt 0:00:01]} g6 {[%emt 0:00:01]} 3. Bg2 {[%emt 0:00:01]} Bg7 {[%emt 0:00:00]} 4. O-O {[%emt 0:00:02]} O-O {[%emt 0:00:02]} 5. d3 {[%emt 0:00:01]} d6 {[%emt 0:00:01]} 6. e4 {[%emt 0:00:01]} c5 {[%emt 0:00:02]} 7. Nc3 {[%emt 0:00:09]} Nc6 {[%emt 0:00:01]} 8. Nd2 {[%emt 0:00:02]} Rb8 {[%emt 0:00:02]} 9. a4 {[%emt 0:00:01]} a6 {[%emt 0:00:01]} 10. Nc4 {[%emt 0:00:02]} b5 {[%emt 0:00:03]} 11. axb5 {[%emt 0:00:03]} axb5 {[%emt 0:00:01]} 12. Ne3 {[%emt 0:00:01]} b4 {[%emt 0:00:05]} 13. Ne2 {[%emt 0:00:05]} Nd4 {[%emt 0:00:22]} 14. f4 {[%emt 0:00:15]} Qc7 {[%emt 0:00:42]} 15. f5 {[%emt 0:00:30]} e6 {[%emt 0:00:50]} 16. g4 {[%emt 0:01:22]} Nd7 {[%emt 0:00:22]} 17. Kh1 {[%emt 0:01:01]} exf5 {[%emt 0:00:17]} 18. gxf5 {[%emt 0:00:23]} Bb7 {[%emt 0:00:20]} 19. Nxd4 {[%emt 0:00:59]} cxd4 {[%emt 0:00:02]} 20. Nc4 {[%emt 0:00:03]} Ne5 {[%emt 0:01:01]} 21. f6 {[%emt 0:00:27]} Bh8 {[%emt 0:00:01]} 22. Nxe5 {[%emt 0:00:29]} dxe5 {[%emt 0:00:01]} 23. Bh6 {[%emt 0:00:04]} Rfc8 {[%emt 0:00:20]} 24. Rc1 {[%emt 0:00:06]} Qb6 {[%emt 0:00:08]} 25. Qf3 {[%emt 0:00:23]} Rc6 {[%emt 0:00:16]} 26. Bg5 {[%emt 0:00:18]} Rbc8 {[%emt 0:00:12]} 27. Bh3 {[%emt 0:00:57]} R8c7 {[%emt 0:00:01]} 28. Qg3 {[%emt 0:00:28]} Qb5 {[%emt 0:00:26]} 29. Rf5 {[%emt 0:01:38]} Rc5 {[%emt 0:00:27]} 30. Bh6 {[%emt 0:00:44]} Bc8 {[%emt 0:00:09]} 31. Rf2 {[%emt 0:00:07]} b3 {[%emt 0:00:21]} 32. Bxc8 {[%emt 0:00:18]} Rxc8 {[%emt 0:00:00]} 33. Qg4 {[%emt 0:00:23]} Qb7 {[%emt 0:00:26]} 34. Qg2 {[%emt 0:00:33]} Qd7 {[%emt 0:00:15]} 35. h4 {[%emt 0:00:38]} Qe6 {[%emt 0:00:21]} 36. Bg5 {[%emt 0:00:04]} h5 {[%emt 0:00:19]} 37. Kh2 {[%emt 0:00:11]} Qc6 {[%emt 0:00:18]} 38. Rg1 {[%emt 0:00:08]} Rxc2 {[%emt 0:00:10]} 39. Bd2 {[%emt 0:00:07]} Qe6 {[%emt 0:00:16]} 40. Qf3 {[%emt 0:00:04]} Rxb2 {[%emt 0:00:27]} 41. Qxh5 {[%emt 0:00:08]} Rxd2 {[%emt 0:00:35]} 42. Rxd2 {[%emt 0:00:06]} Qxf6 {[%emt 0:00:04]} 43. Qg4 {[%emt 0:00:06]} Rc2 {[%emt 0:00:12]} 44. Rxc2 {[%emt 0:00:02]} bxc2 {[%emt 0:00:03]} 45. Qc8+ {[%emt 0:00:02]} Kh7 {[%emt 0:00:00]} 46. Qxc2 {[%emt 0:00:04]} Qxh4+ {[%emt 0:00:00]} 47. Kg2 {[%emt 0:00:01]} Qg4+ {[%emt 0:00:13]} 48. Kf2 {[%emt 0:00:01]} Qf4+ {[%emt 0:00:04]} 49. Kg2 {[%emt 0:00:08]} Bf6 {[%emt 0:00:08]} 50. Qf2 {[%emt 0:00:07]} Qg4+ {[%emt 0:00:08]} 51. Kh1 {[%emt 0:00:06]} Qh3+ {[%emt 0:01:10]} 52. Qh2 {[%emt 0:00:01]} Qxh2+ {[%emt 0:00:08]} 53. Kxh2 {[%emt 0:00:01]} Bh4 1/2-1/2

[Event "Memorial Ukrainian Chess Warriors 2024"]
[Site "Lviv"]
[Date "2024.03.15"]
[Round "6.20"]
[White "Trushko, Andrii"]
[Black "Marchyshyn, Vasyl"]
[Result "1-0"]
[ECO "A45"]
[WhiteElo "2050"]
[BlackElo "1753"]
[Annotator "NA"]
[PlyCount "73"]
[EventDate "2024.03.06"]
[EventType "swiss"]
[EventCountry "UKR"]
[SourceTitle "playchess.com"]
[Source "ChessBase"]
[SourceQuality "1"]
[TimeControl "600+5"]

1. d4 {[%emt 0:00:01]} Nf6 {[%emt 0:00:04]} 2. Bg5 {[%emt 0:00:06]} c5 {[%emt 0:00:09]} 3. Bxf6 {[%emt 0:00:02]} exf6 {[%emt 0:00:01]} 4. dxc5 {[%emt 0:00:02]} Bxc5 {[%emt 0:00:02]} 5. e3 {[%emt 0:00:02]} d5 {[%emt 0:00:35]} 6. c3 {[%emt 0:00:01]} O-O {[%emt 0:00:12]} 7. Nd2 {[%emt 0:00:18]} Nc6 {[%emt 0:00:12]} 8. Ngf3 {[%emt 0:00:09]} Re8 {[%emt 0:00:35]} 9. Be2 {[%emt 0:00:07]} Bb6 {[%emt 0:01:45]} 10. O-O {[%emt 0:00:07]} f5 {[%emt 0:00:21]} 11. Nb3 {[%emt 0:00:16]} Qf6 {[%emt 0:00:21]} 12. Qxd5 {[%emt 0:01:00]} f4 {[%emt 0:00:17]} 13. e4 {[%emt 0:00:16]} h6 {[%emt 0:01:42]} 14. Rad1 {[%emt 0:00:53]} Be6 {[%emt 0:01:12]} 15. Qd3 {[%emt 0:00:21]} g5 {[%emt 0:01:06]} 16. h3 {[%emt 0:01:09]} Rad8 {[%emt 0:00:36]} 17. Qc2 {[%emt 0:00:35]} h5 {[%emt 0:00:02]} 18. Rxd8 {[%emt 0:00:02]} Rxd8 {[%emt 0:00:06]} 19. Nh2 {[%emt 0:00:27]} Ne5 {[%emt 0:00:12]} 20. Bxh5 {[%emt 0:00:24]} Kg7 {[%emt 0:00:38]} 21. Nd4 {[%emt 0:00:36]} Bxd4 {[%emt 0:00:34]} 22. cxd4 {[%emt 0:00:00]} Rxd4 {[%emt 0:00:01]} 23. Rd1 {[%emt 0:00:37]} Rc4 {[%emt 0:00:36]} 24. Qe2 {[%emt 0:00:03]} Rc8 {[%emt 0:00:33]} 25. b3 {[%emt 0:00:41]} a5 {[%emt 0:00:07]} 26. Bf3 {[%emt 0:00:36]} a4 {[%emt 0:00:08]} 27. bxa4 {[%emt 0:00:03]} Rc3 {[%emt 0:00:02]} 28. Ng4 {[%emt 0:00:29]} Bxg4 {[%emt 0:00:02]} 29. Bxg4 {[%emt 0:00:01]} Ra3 {[%emt 0:00:08]} 30. Bf5 {[%emt 0:01:02]} Rxa4 31. f3 {[%emt 0:00:15]} Qb6+ {[%emt 0:00:13]} 32. Kh2 {[%emt 0:00:03]} Rb4 {[%emt 0:00:06]} 33. Qe1 {[%emt 0:00:42]} Rb2 {[%emt 0:00:04]} 34. Qc3 {[%emt 0:00:09]} f6 {[%emt 0:00:05]} 35. a4 {[%emt 0:00:02]} Kh6 {[%emt 0:00:06]} 36. Qc8 {[%emt 0:00:17]} Nf7 37. Qf8+ {[%emt 0:00:06]} 1-0

[Event "Memorial Ukrainian Chess Warriors 2024"]
[Site "Lviv"]
[Date "2024.03.15"]
[Round "6.21"]
[White "Nakonechnyi, Oleksii"]
[Black "Nedilko, Vasily"]
[Result "0-1"]
[ECO "A22"]
[WhiteElo "1756"]
[BlackElo "2324"]
[Annotator "TA"]
[PlyCount "76"]
[EventDate "2024.03.06"]
[EventType "swiss"]
[EventCountry "UKR"]
[SourceTitle "playchess.com"]
[Source "ChessBase"]
[SourceQuality "1"]
[TimeControl "600+5"]

{[%evp 10,76,-16,-30,9,-16,-19,-10,-14,-15,-4,-12,30,29,26,22,16,0,34,-14,-14,-28,-12,-62,-56,-77,-75,-110,-7,-18,0,-74,-67,-130,-127,-149,-99,-166,-154,-168,-165,-190,-143,-191,-205,-231,-222,-399,-272,-742,-779,-767,-685,-771,-779,-923,-890,-986,-605,-714,-376,-1776,-1682,-2158,-1945,-2644,-748,-3374,-2369]} 1. c4 {[%emt 0:00:03]} e5 {[%emt 0:00:01]} 2. Nc3 {[%emt 0:00:01]} Nf6 {[%emt 0:00:01]} 3. g3 {[%emt 0:00:01]} Bb4 {[%emt 0:00:02]} 4. Nd5 {[%emt 0:00:02]} Nxd5 {[%emt 0:00:04]} 5. cxd5 {[%emt 0:00:01]} O-O {[%emt 0:00:02]} 6. Bg2 {[%emt 0:00:01]} c5 {[%emt 0:00:30]} 7. e3 {[%emt 0:00:08]} d6 {[%emt 0:00:07]} 8. Ne2 {[%emt 0:00:01]} Nd7 {[%emt 0:00:44] The position is equal.} 9. O-O {[%emt 0:00:04]} b5 {[%emt 0:00:56]} 10. d4 {[%emt 0:00:13]} Re8 {[%emt 0:00:25]} 11. a3 Ba5 {[%emt 0:00:02]} 12. dxc5 {[%emt 0:00:07]} dxc5 {[%emt 0:00:06]} 13. e4 {[%emt 0:00:21]} Bb6 {[%emt 0:00:14]} 14. Be3 {[%emt 0:00:21]} (14. Nc3 $14 {is more appropriate.}) 14... c4 $11 {[%emt 0:00:15]} 15. Bxb6 {[%emt 0:00:02]} Qxb6 {[%emt 0:00:02]} 16. Qc2 {[%emt 0:00:55]} (16. b4 $11) 16... Nc5 $15 {[%emt 0:00:13]} 17. Rad1 {[%emt 0:00:01]} Bd7 {[%emt 0:00:13]} 18. Kh1 {[%emt 0:00:12]} Nd3 {[%emt 0:01:31] Black is more active.} (18... a5 $17 19. f4 Bg4) 19. Nc1 $11 {[%emt 0:00:07]} Nc5 {[%emt 0:00:18]} 20. f4 {[%emt 0:00:16]} (20. Ne2 $1 $11) 20... f6 {[%emt 0:00:12] Black converts the advantage convincingly.} 21. Ne2 {[%emt 0:00:12]} (21. b4 $15 Nb7 22. Ne2 (22. fxe5 Rxe5 23. Na2 Nd6 $17)) 21... a5 $17 {[%emt 0:00:08]} 22. fxe5 {[%emt 0:00:23]} fxe5 {[%emt 0:00:05]} ({Black should play} 22... Rxe5 {Threatens to win with ...Rae8.} 23. Rd4 Rf8) 23. Bf3 {[%emt 0:00:48] [#]} (23. Nc1 $17) 23... Rf8 $1 $19 {[%emt 0:00:27]} 24. Kg2 {[%emt 0:00:09]} Rf6 {[%emt 0:00:28]} 25. Qc3 {[%emt 0:00:26]} Re8 {[%emt 0:01:47]} (25... Nd3 $19 {...Raf8 would now be deadly.} 26. Nc1 b4 27. axb4 axb4) 26. Nc1 {[%emt 0:00:22]} (26. h4 $17 {was worth a try.}) 26... Na4 {[%emt 0:00:20]} 27. Qc2 {[%emt 0:00:07]} Ref8 {[%emt 0:00:19]} 28. Qe2 {[%emt 0:00:27] Wards off Qe3} (28. Qd2) 28... Qc5 {[%emt 0:00:17]} 29. Rd2 $2 {[%emt 0:00:27]} (29. h3) 29... Qc8 {[%emt 0:00:22]} 30. g4 {[%emt 0:00:54]} Rf4 {[%emt 0:00:11][%cal Oh7h5] White must now prevent ...h5!} 31. h3 {[%emt 0:00:01] [#]} h5 $1 {[%emt 0:00:01][%cal Rh5g4][%mdl 512]} 32. Kg3 {[%emt 0:00:14]} (32. Kh2 hxg4) 32... Nc5 {[%emt 0:00:22]} 33. d6 {[%emt 0:01:13]} Qc6 {[%emt 0:00:46]} 34. Rdd1 {[%emt 0:00:29]} R8f6 {[%emt 0:00:20] And now ...hxg4 would win.} 35. Qe3 $2 {[%emt 0:00:25]} (35. g5 Rxd6 36. Bg2) 35... hxg4 {[%emt 0:00:30] Black is clearly winning.} 36. hxg4 {[%emt 0:00:02] [#]} Bxg4 $1 {[%emt 0:00:25][%mdl 512]} 37. Bxg4 {[%emt 0:00:03]} (37. d7 Bxd7) 37... Rxf1 {[%emt 0:00:01]} (37... Nxe4+ $142 38. Kh2 Rxg4 (38... Rxf1 $2 39. Rxf1 Rxf1 40. d7 $19) 39. Rxf6 Rh4+ (39... gxf6 40. d7 $11) (39... Nxf6 $2 40. Rg1 $19) 40. Qh3 Rxh3+ 41. Kxh3 Nxf6) 38. d7 {[%emt 0:00:17]} Rxd1 {[%emt 0:00:03] Weighted Error Value: White=1.30/Black=0.78.  Mistake:       	White=8     	Black=3      Inaccurate:     	White=1     	Black=3      OK:         	White=3     	Black=11     Best:        	White=4     	---        Strong:       	---       	Black=1} 0-1